Workbook

Sheet Tensions
A1: Jibstay & Topping lift tension calculator
O2: ABBREVIATIONS
A3: Set basic rig dimensions into beige cells. These are relatively constant. | M3: BS | O3: Backstay
A4: Set tensions into yellow cells, along with shroud location and pivot offset. | M4: JS | O4: Jibstay
A5: Read resulting jibstay and topping lift tensions in green cells. | M5: TL | O5: Topping lift
M6: Sh | O6: Shrouds
A7: 1 | C7: 1=A, 2=B, 3=C | H7: =90-ATAN(ShOffset/(HLOOKUP(RigNumber,DefaultTable,21)/2))*180/PI() -> 90 | I7: deg | J7: Max main boom
A8: =HLOOKUP(RigNumber,DefaultTable,2) -> 1680 | B8: mm | C8: Mast height, top to deck | H8: =HLOOKUP(RigNumber,DefaultTable,6) -> 2.690977604 | I8: sq.ft | J8: Jib area | M8: Default settings by rig
A9: 500 | B9: mm | C9: Mast step to transom | H9: =0.0012 -> 0.0012 | J9: Density | O9: Rig number
A10: =ATAN(BsBase/BsHt)*180/PI() -> 16.57400776 | B10: deg | C10: Backstay angle wrt mast | H10: 1 | J10: Coef lift | M10: 1 | O10: 1 | P10: 2 | Q10: 3
A11: 3.5 | B11: lb | C11: Backstay tension | H11: 0.4 | J11: Coef drag | M11: 2 | N11: BS ht | O11: 1680 | P11: 1260 | Q11: 960 | S11: mm
A12: =SIN(BsAngle*PI()/180)*BsTens -> 0.9983875817 | B12: lb | C12: Horizontal component | H12: 20 | I12: ft/s | J12: Wind speed | M12: 3 | N12: Hounds | O12: 220 | P12: 160 | Q12: 120 | S12: mm
A13: =COS(BsAngle*PI()/180)*BsTens -> 3.354582275 | B13: lb | C13: Vertical component | H13: 30 | I13: deg | J13: Apparent wind | M13: 4 | N13: Shrouds ht | O13: 1160 | P13: 900 | Q13: 740 | S13: mm
A14: =HLOOKUP(RigNumber,DefaultTable,3) -> 220 | B14: mm | C14: JS point to top of mast | H14: =JibArea*Density*CoefLift*WindSpeed*WindSpeed -> 1.29166925 | I14: lb | J14: Jib lift | M14: 5 | N14: Jib boom | O14: 385 | P14: 350 | Q14: 305 | S14: mm
A15: =BsHt-HoundsHt -> 1460 | B15: mm | C15: Deck to JS point | H15: =JibArea*Density*CoefDrag*WindSpeed*WindSpeed -> 0.5166677 | I15: lb | J15: Jib drag | M15: 6 | N15: Jib area | O15: =2500/(25.4*25.4*1.2*1.2) -> 2.690977604 | P15: =1650/(25.4*25.4*1.2*1.2) -> 1.776045219 | Q15: =1050/(25.4*25.4*1.2*1.2) -> 1.130210594 | S15: sq.ft
A16: =HLOOKUP(RigNumber,DefaultTable,4) -> 1160 | B16: mm | C16: Deck to shroud point | H16: =JibLift*COS(AppWindAngle*PI()/180)+JibDrag*SIN(AppWindAngle*PI()/180) -> 1.376952234 | I16: lb | J16: Jib side force | M16: 7 | N16: Sail CE | O16: 2.3 | P16: 2 | Q16: 1.8 | S16: ft
A17: 0 | B17: mm | C17: Chainplate offset | H17: =JibLift*SIN(AppWindAngle*PI()/180)-JibDrag*COS(AppWindAngle*PI()/180) -> 0.1983872715 | I17: lb | J17: Jib drive force | M17: 8 | N17: JS length | O17: 1420 | P17: 1080 | Q17: 840 | S17: mm
A18: =ATAN(ShOffset/ShHt)*180/PI() -> 0 | B18: deg | C18: Shroud angle wrt mast | H18: =SQRT(JibLift*JibLift+JibDrag+JibDrag) -> 1.643698528 | I18: lb | J18: Tot jib force | M18: 9 | N18: Wind start | O18: 1 | P18: 8 | Q18: 15 | S18: ft/s
A19: 8 | B19: lb | C19: Shroud tension, each | H19: 5.5 | I19: lb | J19: Bulb wt | M19: 10 | N19: Pivot start | O19: 50 | P19: 40 | Q19: 30 | S19: mm
A20: =180*ATAN(HLOOKUP(RigNumber,DefaultTable,21)/(2*ShHt))/PI() -> 6.881723631 | B20: deg | C20: Shroud base angle | H20: 1.3 | I20: ft | J20: Draught | M20: 11 | N20: Default pivot | O20: 72.5 | P20: 62.5 | Q20: 55 | S20: mm
A21: =SIN(ShAngle*PI()/180)*2*ShTens*COS(PI()*ShBaseAngle/180) -> 0 | B21: lb | C21: Shroud horiz component | H21: =HLOOKUP(RigNumber,DefaultTable,7) -> 2.3 | I21: ft | J21: Sail CE height | M21: 12 | N21: Default wind | O21: 14.5 | P21: 18.5 | Q21: 25 | S21: ft/s
A22: =COS(ShAngle*PI()/180)*2*ShTens*COS(PI()*ShBaseAngle/180) -> 15.88472981 | B22: lb | C22: Shroud vert component | H22: =HLOOKUP(RigNumber,DefaultTable,15) -> 0.4583333333 | J22: Jib contribution | M22: 13 | N22: Main area | O22: =3500/(25.4*25.4*1.2*1.2) -> 3.767368646 | P22: =2500/(25.4*25.4*1.2*1.2) -> 2.690977604 | Q22: =1500/(25.4*25.4*1.2*1.2) -> 1.614586563 | S22: sq.ft
A23: =ShTensHoriz*(ShHt)/(JibHt) -> 0 | B23: lb | C23: Shroud horiz at JS | H23: =((SailCE*JibSide)/JibContrib)/(BulbWt*Draught) -> 0.9664051278 | J23: sin(heel) | M23: 14 | N23: Jib ratio | O23: =O15/(O15+O22) -> 0.4166666667 | P23: =P15/(P15+P22) -> 0.3975903614 | Q23: =Q15/(Q15+Q22) -> 0.4117647059
A24: =BsTensHoriz*BsHt/(JibHt) -> 1.148829546 | B24: lb | C24: BS horiz at JS | H24: =IF(SinHeel>0.7,NA(),ASIN(SinHeel)*180/PI()) ->  | I24: deg | J24: Estimated heel | M24: 15 | N24: Jib contrib | O24: =O23*(1+JibContribFactor) -> 0.4583333333 | P24: =P23*(1+JibContribFactor) -> 0.4373493976 | Q24: =Q23*(1+JibContribFactor) -> 0.4529411765
A25: =HLOOKUP(RigNumber,DefaultTable,5) -> 385 | B25: mm | C25: Jib tack to TL point | H25: 0.1 | J25: Jib contrib factor | M25: 16 | N25: Modulus | O25: 20000 | P25: 20000 | Q25: 20000
A26: 72.5 | B26: mm | C26: Pivot offset | M26: 17 | N26: Jib leech | O26: 1250 | P26: 910 | Q26: 660 | S26: mm
A27: =JibBoom-PivotOffset -> 312.5 | B27: mm | C27: Jib forces triangle base | M27: 18 | N27: Mid-leech gap | O27: 35 | P27: 31 | Q27: 28 | S27: mm
A28: =ATAN(JibBase/JibHt)*180/PI() -> 12.08135612 | B28: deg | C28: Jib tension angle | J28: Tensions vs pivot offset | M28: 19 | N28: Jib draft | O28: 0.08 | P28: 0.07 | Q28: 0.06
A29: =(HoundsShHoriz+HoundsBsHoriz)/SIN(JibAngle*PI()/180) -> 5.488903192 | B29: lb | C29: Jib force from BS & Sh horiz | J29: =HLOOKUP(RigNumber,DefaultTable,12) -> 14.5 | K29: default wind speed | M29: 20 | N29: Jib luff allowance | O29: 3 | P29: 2 | Q29: 1 | S29: mm
A30: =COS(JibAngle*PI()/180)*JibTensHoriz -> 5.367331639 | B30: lb | C30: Vert jib force | J30: Tensions vs wind speed | M30: 21 | N30: Beam | O30: 280 | P30: 280 | Q30: 280 | S30: mm
A31: =JibTensHoriz*JibBase/JibBoom -> 4.455278565 | B31: lb | C31: JS share of jib forces | J31: =HLOOKUP(RigNumber,DefaultTable,11) -> 72.5 | K31: default pivot offset | M31: 22 | N31: Max draft posn | O31: 0.4 | P31: 0.4 | Q31: 0.4
A32: =JibTensHoriz*PivotOffset/JibBoom -> 1.033624627 | B32: lb | C32: TL share of jib force | J32: Heel graph | Q32: Draw all graphs
A33: =JibTensVert+ShTensVert+BsTensVert -> 24.60664372 | B33: lb | C33: Mast compression | J33: =DefaultPivotOffset -> 72.5 | K33: default pivot offset | Q33: (Recommended)
C34: (These tensions are static values)
D38: Working area for "Pivot" macro | L38: Working area for "Wind" & "Heel" macro
B39: Pivot offset | D39: TL | E39: JS | M39: Wind | N39: Heel | O39: TL | P39: JS
D40: =RevTlTens -> 0 | E40: =RevJsTens -> 15.31063921 | M40: =WindSpeed -> 20 | N40: =H24 ->  | O40: =RevTlTens -> 0 | P40: =RevJsTens -> 15.31063921
A41: 5 | B41: =HLOOKUP(RigNumber,DefaultTable,10) -> 50 | D41: 0 | E41: 12.16564898 | L41: 1 | M41: =HLOOKUP(RigNumber,DefaultTable,9) -> 1 | N41: 0.1384274725 | O41: 0.9826955974 | P41: 4.490112946 | Q41: 30
A42: Pivot increment | B42: =B41+PivotIncrem -> 55 | D42: 0 | E42: 11.7195044 | L42: Wind | M42: =M41+WindIncrem -> 2 | N42: 0.5537179705 | O42: 0.9311541682 | P42: 4.698146508 | Q42: 30
A43: incr. | B43: =B42+PivotIncrem -> 60 | D43: 0 | E43: 11.3191671 | L43: incr. | M43: =M42+WindIncrem -> 3 | N43: 1.245944235 | O43: 0.8784000195 | P43: 5.023756207 | Q43: 30
B44: 65 | D44: 0 | E44: 10.98995521 | M44: 4 | N44: 2.215389382 | O44: 0.8238560138 | P44: 5.399721856 | Q44: 30
B45: 70 | D45: 0 | E45: 10.69922993 | M45: 5 | N45: 3.462791117 | O45: 0.7669775065 | P45: 5.805423256 | Q45: 30
B46: 75 | D46: 0.07546685539 | E46: 10.57615994 | M46: 6 | N46: 4.989688785 | O46: 0.707259337 | P46: 6.231443378 | Q46: 30
B47: 80 | D47: 0.165336337 | E47: 10.47653608 | M47: 7 | N47: 6.798884042 | O47: 0.6442402979 | P47: 6.675034499 | Q47: 30
B48: 85 | D48: 0.2581125496 | E48: 10.37690925 | M48: 8 | N48: 8.895037725 | O48: 0.5775051844 | P48: 7.153151938 | Q48: 30
B49: 90 | D49: 0.35394576 | E49: 10.27728006 | M49: 9 | N49: 11.2854455 | O49: 0.5066847505 | P49: 7.648371627 | Q49: 30
B50: 95 | D50: 0.4529966041 | E50: 10.17764913 | M50: 10 | N50: 13.9810686 | O50: 0.4314540194 | P50: 8.138180133 | Q50: 30
B51: 100 | D51: 0.5554369972 | E51: 10.0965107 | M51: 11 | N51: 16.99795374 | O51: 0.3515294351 | P51: 8.664482779 | Q51: 30
B52: 105 | D52: 0.6614511403 | E52: 9.994472649 | M52: 12 | N52: 20.35928068 | O52: 0.2666653003 | P52: 9.207897354 | Q52: 30
B53: 110 | D53: 0.7712366373 | E53: 9.892431953 | M53: 13 | N53: 24.09847516 | O53: 0.1766498777 | P53: 9.746873389 | Q53: 30
B54: 115 | D54: 0.8850057358 | E54: 9.790389282 | M54: 14 | N54: 28.26423532 | O54: 0.08130143861 | P54: 10.32135474 | Q54: 30
B55: 120 | D55: 1.002986708 | E55: 9.688345307 | M55: 15 | N55: 32.92924126 | O55: 0 | P55: 10.95041068 | Q55: 30
B56: 125 | D56: 1.125425392 | E56: 9.604500372 | M56: 16 | N56: 38.20662671 | O56: 0 | P56: 11.76427345 | Q56: 30
M57: 17 | N57: 44.2849849 | O57: 0 | P57: 12.62243698 | Q57: 30
M58: 18 | O58: 0 | P58: 13.48560063 | Q58: 30
M59: 19 | O59: 0 | P59: 14.37573914 | Q59: 30
M60: 20 | O60: 0 | P60: 15.31063921 | Q60: 30

Sheet Tension graphs
J6: =ShOffset -> 0 | K6: Shroud offset
J7: =BsTens -> 3.5 | K7: Backstay tension
J8: =ShTens -> 8 | K8: Shroud tension
J9: =DefaultWindSpeed -> 14.5 | K9: Wind speed
J29: =ShOffset -> 0 | K29: Shroud offset
J30: =BsTens -> 3.5 | K30: Backstay tension
J31: =ShTens -> 8 | K31: Shroud tension
J32: =DefaultPivotOffset -> 72.5 | K32: Pivot offset

Sheet Heel graphs
J7: 30 | K7: Apparent wind

Sheet Sag graphs
J6: =BsTens -> 3.5 | K6: Backstay tension
J7: =ShTens -> 8 | K7: Shrouds tension
J8: =ShOffset -> 0 | K8: Shrouds offset
J9: =DefaultPivotOffset -> 72.5 | K9: Pivot offset
J30: =BsTens -> 3.5 | K30: Backstay tension
J31: =ShTens -> 8 | K31: Shrouds tension
J32: =ShOffset -> 0 | K32: Shrouds offset
J33: =DefaultWindSpeed -> 14.5 | K33: Wind speed

Sheet Twist graphs
J8: =DefaultPivotOffset -> 72.5 | K8: Pivot offset
J9: =DefaultTwist -> 9.952955168 | K9: Default twist
J10: =BsTens -> 3.5 | K10: Backstay tension
J11: =ShTens -> 8 | K11: Shrouds tension
J12: =ShOffset -> 0 | K12: Shrouds offset
J33: =DefaultPivotOffset -> 72.5 | K33: Pivot offset
J34: =BsTens -> 3.5 | K34: Backstay tension
J35: =ShTens -> 8 | K35: Shrouds tension
J36: =ShOffset -> 0 | K36: Shrouds offset

Sheet JS sag
F1: 1 | G1: 2 | H1: 3 | I1: 4 | J1: 5 | K1: 6 | M1: Working area for 'Sag' macros
A2: Elongation adjust factor | B2: 2 | F2: Sag | G2: Angle | H2: Elong | I2: Tens | J2: Force | M2: Wind | N2: Sag | Q2: Pivot | R2: Sag | X2: Total | Y2: =EntryNominal+DefaultTwist -> 33.18889389
A3: JS length | B3: =HLOOKUP(RigNumber,DefaultTable,8) -> 1420 | C3: mm | E3: 0.5 | F3: 0.5 | G3: =ATAN(F3/(JsLength/2))*180/PI() -> 0.04034913383 | H3: =ElongAdjust*(2*SQRT(F3*F3+(JsLength/2)^2)-JsLength) -> 0.0007042252646 | I3: =JsTensStatic+JsLeverage+H3*Modulus/JsLength -> 7.094826115 | J3: =I3*SIN(2*G3*PI()/180) -> 0.009992707882 | K3: =F3 -> 0.5 | L3: Draft | N3: Sag | O3: Twist | P3: Entry | R3: Sag | T3: Draft | X3: entry | Y3: =VLOOKUP(DefaultWindSpeed,M5:X24,12) -> 41.21268304
A4: Modulus | B4: =HLOOKUP(RigNumber,DefaultTable,16) -> 20000 | F4: =SagStart+SagIncrement -> 1 | G4: =ATAN(F4/(JsLength/2))*180/PI() -> 0.08069822764 | H4: =ElongAdjust*(2*SQRT(F4*F4+(JsLength/2)^2)-JsLength) -> 0.002816900012 | I4: =JsTensStatic+JsLeverage+H4*Modulus/JsLength -> 7.124582097 | J4: =I4*SIN(2*G4*PI()/180) -> 0.02006920553 | K4: =F4 -> 1 | L4: =DraftInterp -> 0.1199556087 | N4: =JsSagTotal -> 14.90172412 | O4: =MidLeechTwist -> 8.873678783 | P4: =EntryInterp -> 35.4853769 | R4: =JsSagTotal -> 14.90172412 | T4: =DraftInterp -> 0.1199556087 | U4: =NominalDraft -> 0.08 | V4: =DefaultTwist -> 9.952955168 | W4: ='Sag draft'!G7 -> 23.23593872 | X4: =X5 -> 24.83017611
A5: Jib lever wrt boom | B5: 1 | F5: =F4+SagIncrement -> 1.5 | G5: 0.1210472414 | H5: 0.006338021097 | I5: 7.174175352 | J5: 0.03031328168 | K5: 1.5 | L5: 0.05230443181 | M5: =Tensions!M41 -> 1 | N5: 1.607999669 | O5: 9.759076085 | P5: 15.07110003 | Q5: =Tensions!B41 -> 50 | R5: 12.23164625 | T5: 0.1120955967 | U5: =$U$4 -> 0.08 | V5: =$V$4 -> 9.952955168 | W5: =$W$4 -> 23.23593872 | X5: =P5+O5 -> 24.83017611
A6: Jib sag force distribn | B6: =0.5*JibBase/JibBoom -> 0.4058441558 | F6: =F5+SagIncrement -> 2 | G6: 0.1613961351 | H6: 0.01126758328 | I6: 7.243605805 | J6: 0.04080872297 | K6: 2 | L6: 0.06587169325 | M6: =Tensions!M42 -> 2 | N6: 3.057153283 | O6: 9.584369938 | P6: 19.04609346 | Q6: =Tensions!B42 -> 55 | R6: 12.49431959 | T6: 0.113103499 | U6: =$U$4 -> 0.08 | V6: =$V$4 -> 9.952955168 | W6: =$W$4 -> 23.23593872 | X6: =P6+O6 -> 28.6304634
A7: Jib sag force on JS | B7: =SagDistrib*TotJib -> 0.6670854416 | C7: lb | F7: 2.5 | G7: 0.2017448687 | H7: 0.01760557923 | I7: 7.332873354 | J7: 0.05163931295 | K7: 2.5 | L7: 0.07522491451 | M7: =Tensions!M43 -> 3 | N7: 4.303361867 | O7: 9.361138482 | P7: 21.81336676 | Q7: =Tensions!B43 -> 60 | R7: 12.69623272 | T7: 0.1138782587 | U7: 0.08 | V7: 9.952955168 | W7: 23.23593872 | X7: 31.17450524
A8: Leverage at TL | B8: =TotJib*(((JibLever*JibBoom)-PivotOffset)/JibBase) -> 1.643698528 | C8: lb | F8: 3 | G8: 0.2420934023 | H8: 0.02535199952 | I8: 7.441977865 | J8: 0.06288883099 | K8: 3 | L8: 0.08211351365 | M8: =Tensions!M44 -> 4 | N8: 5.386187654 | O8: 9.15296847 | P8: 23.86706435 | Q8: =Tensions!B44 -> 65 | R8: 12.85973392 | T8: 0.1145056281 | U8: 0.08 | V8: 9.952955168 | W8: 23.23593872 | X8: 33.02003282
A9: TL releases at jib force | B9: =TlTensStatic*JibBase/((JibLever*JibBoom)-PivotOffset) -> 1.033624627 | C9: lb | F9: 3.5 | G9: 0.2824416957 | H9: 0.03450683262 | I9: 7.570919176 | J9: 0.07464105128 | K9: 3.5 | L9: 0.08746961192 | M9: =Tensions!M45 -> 5 | N9: 6.342477058 | O9: 8.961552795 | P9: 25.47559396 | Q9: =Tensions!B45 -> 70 | R9: 12.99143161 | T9: 0.1150109646 | U9: 0.08 | V9: 9.952955168 | W9: 23.23593872 | X9: 34.43714675
A10: Leverage at JS | B10: =IF(TotJib>TlRelForce,(TotJib-TlRelForce)*(((JibLever*JibBoom)-PivotOffset)/PivotOffset),0) -> 2.629628884 | C10: lb | D10: after release | F10: 4 | G10: 0.322789709 | H10: 0.04507006491 | I10: 7.719697096 | J10: 0.08697974177 | K10: 4 | L10: 0.09192031262 | M10: =Tensions!M46 -> 6 | N10: 7.208220964 | O10: 8.783990971 | P10: 26.81945348 | Q10: =Tensions!B46 -> 75 | R10: 12.92462018 | T10: 0.1147546029 | U10: 0.08 | V10: 9.952955168 | W10: 23.23593872 | X10: 35.60344445
A11: JS stretch due to lever | B11: =JsLeverage*JsLength/Modulus -> 0.1867036508 | C11: mm | D11: after release | F11: 4.5 | G11: 0.3631374021 | H11: 0.05704168068 | I11: 7.888311402 | J11: 0.09998866314 | K11: 4.5 | L11: 0.09572834617 | M11: =Tensions!M47 -> 7 | N11: 8.012147617 | O11: 8.615630737 | P11: 27.97631775 | Q11: =Tensions!B47 -> 80 | R11: 12.82917277 | T11: 0.1143883621 | U11: 0.08 | V11: 9.952955168 | W11: 23.23593872 | X11: 36.59194849
A12: TL release due to lever | B12: =JsStretch*JibBase/PivotOffset -> 0.8047571153 | C12: mm | D12: after release | F12: 5 | G12: 0.4034847351 | H12: 0.07042166211 | I12: 8.076761845 | J12: 0.1137515678 | K12: 5 | L12: 0.0990473379 | M12: =Tensions!M48 -> 8 | N12: 8.757266525 | O12: 8.456590378 | P12: 28.98933233 | Q12: =Tensions!B48 -> 85 | R12: 12.73367505 | T12: 0.1140219284 | U12: 0.08 | V12: 9.952955168 | W12: 23.23593872 | X12: 37.4459227
A13: (First cut est) | B13: =VLOOKUP(SagForce,SagForceTable,2)+SagIncrement -> 15 | C13: mm | F13: 5.5 | G13: 0.4438316679 | H13: 0.08520998931 | I13: 8.285048143 | J13: 0.1283521987 | K13: 5.5 | L13: 0.102102544 | M13: =Tensions!M49 -> 9 | N13: 9.472168674 | O13: 8.302471359 | P13: 29.92479397 | Q13: =Tensions!B49 -> 90 | R13: 12.63812752 | T13: 0.1136553035 | U13: 0.08 | V13: 9.952955168 | W13: 23.23593872 | X13: 38.22726533
A14: JS sag (total) | B14: =VLOOKUP(SagForce,SagForceTable,2)+SagIncrement*((SagForce-VLOOKUP(SagForce,SagForceTable,1))/(VLOOKUP(FirstCutSag,SagTable,5)-VLOOKUP(SagForce,SagForceTable,1))) -> 14.90172412 | C14: mm | F14: 6 | G14: 0.4841781605 | H14: 0.1014066403 | I14: 8.513169988 | J14: 0.1438742885 | K14: 6 | L14: 0.1048185975 | M14: =Tensions!M50 -> 10 | N14: 10.15032905 | O14: 8.153339244 | P14: 30.76125831 | Q14: =Tensions!B50 -> 95 | R14: 12.5425307 | T14: 0.1132884895 | U14: 0.08 | V14: 9.952955168 | W14: 23.23593872 | X14: 38.91459755
A15: Revised JS tension | B15: =IF(FirstCutSag>=SagTableMaxSag,NA(),VLOOKUP(JsSagTotal,SagTensTable,4)+((FirstCutSag-JsSagTotal)/SagIncrement)*(VLOOKUP(JsSagTotal,SagTensTable,4)-VLOOKUP(FirstCutSag,SagTensTable,4))) -> 15.31063921 | C15: lb | D15: (dynamic) | F15: 6.5 | G15: 0.5245241729 | H15: 0.1190115909 | I15: 8.761127039 | J15: 0.1604015584 | K15: 6.5 | L15: 0.1073686336 | M15: =Tensions!M51 -> 11 | N15: 10.80690901 | O15: 8.008265734 | P15: 31.54877846 | Q15: =Tensions!B51 -> 100 | R15: 12.44334474 | T15: 0.1129079037 | U15: 0.08 | V15: 9.952955168 | W15: 23.23593872 | X15: 39.5570442
A16: Revised TL tension | B16: =IF(TlLeverForce>TlTensStatic,0,TlTensStatic-TlLeverForce) -> 0 | C16: lb | D16: (dynamic) | F16: 7 | G16: 0.5648696652 | H16: 0.138024815 | I16: 9.028918928 | J16: 0.1780177173 | K16: 7 | L16: 0.109737105 | M16: =Tensions!M52 -> 12 | N16: 11.44652736 | O16: 7.865084397 | P16: 32.28361058 | Q16: =Tensions!B52 -> 105 | R16: 12.34127118 | T16: 0.1125162378 | U16: 0.08 | V16: 9.952955168 | W16: 23.23593872 | X16: 40.14869497
A17: Total TL lift | B17: =DefaultLift+TlRelDist -> 2.766929828 | C17: mm | F17: 7.5 | G17: 0.6052145972 | H17: 0.1584462843 | I17: 9.316545256 | J17: 0.1968064602 | K17: 7.5 | L17: 0.1119648127 | M17: =Tensions!M53 -> 13 | N17: 12.06666732 | O17: 7.724980314 | P17: 32.97659982 | Q17: =Tensions!B53 -> 110 | R17: 12.23914509 | T17: 0.1121243704 | U17: 0.08 | V17: 9.952955168 | W17: 23.23593872 | X17: 40.70158013
A18: Total entry angle | B18: 43.74639191 | C18: deg | F18: 8 | G18: 0.6455589291 | H18: 0.1802759684 | I18: 9.624005596 | J18: 0.2168514681 | K18: 8 | L18: 0.1140402755 | M18: =Tensions!M54 -> 14 | N18: 12.67118446 | O18: 7.587130191 | P18: 33.62555285 | Q18: =Tensions!B54 -> 115 | R18: 12.13696707 | T18: 0.1117323037 | U18: 0.08 | V18: 9.952955168 | W18: 23.23593872 | X18: 41.21268304
A19: Jib luff allowance | B19: =HLOOKUP(RigNumber,DefaultTable,20) -> 3 | C19: mm | F19: 8.5 | G19: 0.6859026209 | H19: 0.2035138349 | I19: 9.951299489 | J19: 0.238236406 | K19: 8.5 | L19: 0.1158909414 | M19: =Tensions!M55 -> 15 | N19: 13.22076578 | O19: 7.52487403 | P19: 34.20421669 | Q19: =Tensions!B55 -> 120 | R19: 12.03473772 | T19: 0.1113400401 | U19: 0.08 | V19: 9.952955168 | W19: 23.23593872 | X19: 41.72909072
A20: JS sag (into draft) | B20: =JsSagTotal*COS(PI()*JsSagAngle/180)-LuffAllow*COS(PI()*JsSagAngle/180) -> 8.597894853 | C20: mm | F20: 9 | G20: 0.7262456324 | H20: 0.2281598491 | I20: 10.29842645 | J20: 0.2610449224 | K20: 9 | L20: 0.1168739659 | M20: =Tensions!M56 -> 16 | N20: 13.57451745 | O20: 7.77120307 | P20: 34.51390855 | Q20: =Tensions!B56 -> 125 | R20: 11.92783674 | T20: 0.1109154385 | U20: 0.08 | V20: 9.952955168 | W20: 23.23593872 | X20: 42.28511162
A21: JS sag (into twist) | B21: =JsSagTotal*SIN(PI()*JsSagAngle/180) -> 10.30405889 | C21: mm | F21: 9.5 | G21: 0.7665879238 | H21: 0.2542139745 | I21: 10.66538596 | J21: 0.2853606484 | K21: 9.5 | L21: 0.117584964 | M21: =Tensions!M57 -> 17 | N21: 13.91789444 | O21: 8.034465604 | P21: 34.73804618 | U21: 0.08 | V21: 9.952955168 | W21: 23.23593872 | X21: 42.77251178
A22: Mid-leech twist (TL) | B22: =MidLeechTwist -> 8.873678783 | C22: deg | F22: 10 | G22: 0.8069294551 | H22: 0.2816761723 | I22: 11.05217748 | J22: 0.311267196 | K22: 10 | L22: 0.1182863114 | M22: =Tensions!M58 -> 18 | N22: 14.25183333 | O22: 8.313811973 | P22: 34.95914149 | U22: 0.08 | V22: 9.952955168 | W22: 23.23593872 | X22: 43.27295347
F23: 10.5 | G23: 0.8472701863 | H23: 0.3105464016 | I23: 11.45880043 | J23: 0.3388481579 | K23: 10.5 | L23: 0.1189311399 | M23: =Tensions!M59 -> 19 | N23: 14.58135037 | O23: 8.583972314 | P23: 35.1624196 | U23: 0.08 | V23: 9.952955168 | W23: 23.23593872 | X23: 43.74639191
F24: 11 | G24: 0.8876100774 | H24: 0.3408246195 | I24: 11.8852542 | J24: 0.3681871057 | K24: 11 | L24: 0.1195278656 | M24: =Tensions!M60 -> 20 | N24: 14.90172412 | O24: 8.873678783 | P24: 35.35053359 | U24: 0.08 | V24: 9.952955168 | W24: 23.23593872 | X24: 44.22421237
F25: 11.5 | G25: 0.9279490885 | H25: 0.3725107809 | I25: 12.33153817 | J25: 0.3993675895 | K25: 11.5
F26: 12 | G26: 0.9682871795 | H26: 0.4056048389 | I26: 12.79765166 | J26: 0.4324731365 | K26: 12
F27: 12.5 | G27: 1.008624311 | H27: 0.440106744 | I27: 13.28359398 | J27: 0.46758725 | K27: 12.5
F28: 13 | G28: 1.048960442 | H28: 0.4760164451 | I28: 13.78936442 | J28: 0.5047934084 | K28: 13
B29: =DefaultPivotOffset -> 72.5 | F29: 13.5 | G29: 1.089295533 | H29: 0.5133338888 | I29: 14.31496222 | J29: 0.5441750642 | K29: 13.5
A30: Draw JS sag vs wind graph | F30: 14 | G30: 1.129629545 | H30: 0.5520590195 | I30: 14.8603866 | J30: 0.5858156431 | K30: 14
F31: 14.5 | G31: 1.169962437 | H31: 0.5921917797 | I31: 15.42563674 | J31: 0.6297985427 | K31: 14.5
F32: 15 | G32: 1.210294169 | H32: 0.6337321098 | I32: 16.01071181 | J32: 0.6762071315 | K32: 15
B33: =DefaultWindSpeed -> 14.5 | F33: 15.5 | G33: 1.250624702 | H33: 0.6766799479 | I33: 16.61561094 | J33: 0.7251247482 | K33: 15.5
A34: Draw JS sag vs pivot offset | F34: 16 | G34: 1.290953995 | H34: 0.7210352303 | I34: 17.24033323 | J34: =I34*SIN(2*G34*PI()/180) -> 0.7766347004 | K34: =F34 -> 16
F35: 16.5 | G35: 1.331282009 | H35: 0.766797891 | I35: 17.88487774 | J35: 0.8308202633 | K35: 16.5
F36: 17 | G36: 1.371608703 | H36: 0.813967862 | I36: 18.54924353 | J36: 0.8877646795 | K36: 17
B37: =DefaultPivotOffset -> 72.5 | F37: 17.5 | G37: 1.411934039 | H37: 0.8625450732 | I37: 19.23342961 | J37: 0.9475511569 | K37: 17.5
A38: Draw mid-leech twist vs wind graph | F38: 18 | G38: 1.452257975 | H38: 0.9125294525 | I38: 19.93743495 | J38: 1.010262869 | K38: 18
F39: 18.5 | G39: 1.492580472 | H39: 0.9639209254 | I39: 20.66125851 | J39: 1.075982952 | K39: 18.5
F40: 19 | G40: 1.532901491 | H40: 1.016719416 | I40: 21.40489922 | J40: 1.144794505 | K40: 19
F41: 19.5 | G41: 1.573220991 | H41: 1.070924845 | I41: 22.16835597 | J41: =I41*SIN(2*G41*PI()/180) -> 1.216780591 | K41: =F41 -> 19.5
F42: 20 | G42: 1.613538933 | H42: 1.126537133 | I42: 22.95162763 | J42: 1.292024231 | K42: 20
F43: 20.5 | G43: 1.653855276 | H43: 1.183556196 | I43: 23.75471303 | J43: 1.370608407 | K43: 20.5
F44: 21 | G44: 1.694169981 | H44: 1.241981951 | I44: 24.57761098 | J44: 1.45261606 | K44: 21
F45: 21.5 | G45: 1.734483009 | H45: 1.30181431 | I45: 25.42032026 | J45: 1.538130087 | K45: 21.5
F46: 22 | G46: 1.774794318 | H46: 1.363053184 | I46: 26.28283962 | J46: 1.627233344 | K46: 22
F47: 22.5 | G47: 1.81510387 | H47: 1.425698483 | I47: 27.16516777 | J47: 1.720008641 | K47: 22.5
F48: 23 | G48: 1.855411625 | H48: 1.489750113 | I48: 28.06730341 | J48: 1.816538743 | K48: 23
F49: 23.5 | G49: 1.895717542 | H49: 1.55520798 | I49: 28.9892452 | J49: 1.916906369 | K49: 23.5
F50: 24 | G50: 1.936021583 | H50: 1.622071986 | I50: 29.93099176 | J50: 2.021194191 | K50: 24
F51: 24.5 | G51: 1.976323707 | H51: 1.690342032 | I51: 30.89254171 | J51: 2.12948483 | K51: 24.5
F52: 25 | G52: 2.016623875 | H52: 1.760018017 | I52: 31.8738936 | J52: 2.241860861 | K52: 25
F53: 25.5 | G53: 2.056922046 | H53: 1.831099837 | I53: 32.875046 | J53: 2.358404806 | K53: 25.5
F54: 26 | G54: 2.097218182 | H54: 1.903587386 | I54: 33.8959974 | J54: 2.479199138 | K54: 26
F55: 26.5 | G55: 2.137512242 | H55: 1.977480558 | I55: 34.9367463 | J55: 2.604326275 | K55: 26.5
F56: 27 | G56: 2.177804187 | H56: 2.052779242 | I56: 35.99729115 | J56: 2.733868582 | K56: 27
F57: 27.5 | G57: 2.218093977 | H57: 2.129483328 | I57: 37.07763037 | J57: 2.867908372 | K57: 27.5
F58: 28 | G58: 2.258381573 | H58: 2.2075927 | I58: 38.17776237 | J58: 3.0065279 | K58: 28
F59: 28.5 | G59: 2.298666934 | H59: 2.287107243 | I59: 39.29768552 | J59: 3.149809364 | K59: 28.5
F60: 29 | G60: 2.338950022 | H60: 2.36802684 | I60: 40.43739815 | J60: 3.297834907 | K60: 29
F61: 29.5 | G61: 2.379230796 | H61: 2.450351369 | I61: 41.59689857 | J61: 3.450686612 | K61: 29.5
F62: 30 | G62: =NA() ->  | H62: 2.53408071 | I62: 42.77618506 | K62: 30
F64: =MAX(F3:F62) -> 30

Sheet Sag draft
B2: Fore | C2: Aft
A3: Nominal draft | B3: =HLOOKUP(RigNumber,DefaultTable,19) -> 0.08 | E3: Entry angle calcs | I3: Exit angle calcs
A4: Max draft position | B4: =HLOOKUP(RigNumber,DefaultTable,22) -> 0.4 | G4: =B3 -> 0.08 | K4: =B3 -> 0.08
A5: First sag | B5: =VLOOKUP($B$3,I19:J68,2) -> 1.933319923 | C5: =VLOOKUP($B$3,W19:X68,2) -> 1.294327485 | E5: First entry | G5: =VLOOKUP(NominalDraft,K19:O68,4) -> 22.32303098 | I5: First exit | K5: =VLOOKUP(NominalDraft,Y19:AC68,4) -> 14.88202065
A6: Next sag | B6: =VLOOKUP($B$3,I19:L68,4) -> 2.197388534 | C6: =VLOOKUP($B$3,W19:Z68,4) -> 1.471972661 | E6: Next entry | G6: =VLOOKUP(NominalDraft,K19:O68,5) -> 23.81123304 | I6: Next exit | K6: =VLOOKUP(NominalDraft,Y19:AC68,5) -> 15.87415536
A7: Nominal sag | B7: =B5+(B6-B5)*($B$3-VLOOKUP($B$3,K19:M68,1))/(VLOOKUP($B$3,K19:M68,3)-VLOOKUP($B$3,K19:M68,1)) -> 2.095307522 | C7: =C5+(C6-C5)*($B$3-VLOOKUP($B$3,Y19:AA68,1))/(VLOOKUP($B$3,Y19:AA68,3)-VLOOKUP($B$3,Y19:AA68,1)) -> 1.381904388 | E7: Nominal entry | G7: =G5+((G6-G5)*(G4-VLOOKUP(G4,K19:O68,1))/(VLOOKUP(G4,K19:O68,3)-VLOOKUP(G4,K19:O68,1))) -> 23.23593872 | I7: Nominal exit | K7: =K5+((K6-K5)*(K4-VLOOKUP(K4,Y19:AC68,1))/(VLOOKUP(K4,Y19:AC68,3)-VLOOKUP(K4,Y19:AC68,1))) -> 15.37113095
A8: Additnl sag | B8: =JsSagDraft -> 8.597894853
A9: Total sag | B9: =B8+B7+C7 -> 12.07510676
A10: Sag distrib (approx) | B10: =B9*MaxDraft -> 4.830042705 | C10: =B9*(1-MaxDraft) -> 7.245064058 | G10: =DraftInterp -> 0.1199556087 | K10: =DraftInterp -> 0.1199556087
A11: First draft | B11: =VLOOKUP(B10,J19:K68,2) -> 0.1159690753 | E11: First entry | G11: =VLOOKUP(G10,K19:O68,4) -> 34.2286475 | I11: First exit | K11: =VLOOKUP(K10,Y19:AC68,4) -> 22.81909833
A12: Next draft | B12: =VLOOKUP(B10,J19:M68,4) -> 0.1206898746 | E12: Next entry | G12: =VLOOKUP(G10,K19:O68,5) -> 35.71684957 | I12: Next exit | K12: =VLOOKUP(K10,Y19:AC68,5) -> 23.81123304
A13: Interpolated draft | B13: =(B11+(B12-B11)*(B10-VLOOKUP(B10,J19:M68,1))/(VLOOKUP(B10,J19:M68,3)-VLOOKUP(B10,J19:M68,1))) -> 0.1199556087 | E13: Interpolated | G13: =G11+((G12-G11)*(G10-VLOOKUP(G10,K19:O68,1))/(VLOOKUP(G10,K19:O68,3)-VLOOKUP(G10,K19:O68,1))) -> 35.4853769 | I13: Interpolated | K13: =K11+((K12-K11)*(K10-VLOOKUP(K10,Y19:AC68,1))/(VLOOKUP(K10,Y19:AC68,3)-VLOOKUP(K10,Y19:AC68,1))) -> 23.22658629
A16: Width at mid-leech | B16: =JibBoom/2 -> 192.5 | C16: (Full chord) | G16: Portion of jib forward of max draft position | U16: Portion of jib aft of max draft position
A17: Chord at mid-leech | B17: =JibBoom*MaxDraft/2 -> 77 | C17: (Forward of sail max draft) | P17: =JibBoom*(1-MaxDraft)/2 -> 115.5 | Q17: (Aft of sail max draft)
B18: d | C18: Approx r | D18: Theta (radians) | E18: Theta (degrees) | F18: Half chord | G18: r-d | H18: d | I18: % draft | J18: sag | K18: =I18 -> % draft | L18: next sag | M18: next draft | N18: Entry | O18: Next entry | P18: d | Q18: Approx r | R18: Theta (radians) | S18: Theta (degrees) | T18: Half chord | U18: r-d | V18: d | W18: % draft | X18: sag | Y18: =W18 -> % draft | Z18: next sag | AA18: next draft | AB18: Exit | AC18: Next exit
A19: 1 | B19: 1 | C19: =$B$17^2/(2*B19) -> 2964.5 | D19: =$B$17/C19 -> 0.02597402597 | E19: =D19*180/PI() -> 1.488202065 | F19: =C19*SIN(D19) -> 76.99134228 | G19: =C19*COS(D19) -> 2963.500056 | H19: =C19-G19 -> 0.9999437804 | I19: =H19/$B$16 -> 0.005194513145 | J19: =($B$17-F19) -> 0.008657716606 | K19: =I19 -> 0.005194513145 | L19: =J20 -> 0.03462736203 | M19: =K20 -> 0.01038727415 | N19: =E19 -> 1.488202065 | O19: =E20 -> 2.976404131 | P19: 1 | Q19: =$P$17^2/(2*P19) -> 6670.125 | R19: =$P$17/Q19 -> 0.01731601732 | S19: =R19*180/PI() -> 0.9921347102 | T19: =Q19*SIN(R19) -> 115.4942281 | U19: =Q19*COS(R19) -> 6669.125025 | V19: =Q19-U19 -> 0.9999750132 | W19: =V19/$B$16 -> 0.005194675393 | X19: =($P$17-T19) -> 0.005771919237 | Y19: =W19 -> 0.005194675393 | Z19: =X20 -> 0.02308663856 | AA19: =Y20 -> 0.01038857201 | AB19: =S19 -> 0.9921347102 | AC19: =S20 -> 1.98426942
B20: =B19+$A$19 -> 2 | C20: 1482.25 | D20: 0.05194805195 | E20: =D20*180/PI() -> 2.976404131 | F20: =C20*SIN(D20) -> 76.96537264 | G20: =C20*COS(D20) -> 1480.25045 | H20: =C20-G20 -> 1.999550274 | I20: =H20/$B$16 -> 0.01038727415 | J20: =($B$17-F20) -> 0.03462736203 | K20: 0.01038727415 | L20: =J21 -> 0.07789842478 | M20: 0.01557653166 | N20: =E20 -> 2.976404131 | O20: =E21 -> 4.464606196 | P20: =P19+$A$19 -> 2 | Q20: =$P$17^2/(2*P20) -> 3335.0625 | R20: =$P$17/Q20 -> 0.03463203463 | S20: =R20*180/PI() -> 1.98426942 | T20: =Q20*SIN(R20) -> 115.4769134 | U20: =Q20*COS(R20) -> 3333.0627 | V20: =Q20-U20 -> 1.999800112 | W20: =V20/$B$16 -> 0.01038857201 | X20: =($P$17-T20) -> 0.02308663856 | Y20: =W20 -> 0.01038857201 | Z20: =X21 -> 0.05194104305 | AA20: =Y21 -> 0.01558091122 | AB20: =S20 -> 1.98426942 | AC20: =S21 -> 2.976404131
B21: 3 | C21: 988.1666667 | D21: 0.07792207792 | E21: 4.464606196 | F21: 76.92210158 | G21: 985.1681843 | H21: 2.998482345 | I21: 0.01557653166 | J21: 0.07789842478 | K21: 0.01557653166 | L21: 0.1384533913 | M21: 0.0207605359 | N21: 4.464606196 | O21: 5.952808261 | P21: =P20+$A$19 -> 3 | Q21: =$P$17^2/(2*P21) -> 2223.375 | R21: =$P$17/Q21 -> 0.05194805195 | S21: =R21*180/PI() -> 2.976404131 | T21: =Q21*SIN(R21) -> 115.448059 | U21: =Q21*COS(R21) -> 2220.375675 | V21: =Q21-U21 -> 2.999325411 | W21: 0.01558091122 | X21: 0.05194104305 | Y21: =W21 -> 0.01558091122 | Z21: =X22 -> 0.09232994187 | AA21: =Y22 -> 0.02077091473 | AB21: =S21 -> 2.976404131 | AC21: =S22 -> 3.968538841
B22: 4 | C22: 741.125 | D22: 0.1038961039 | E22: 5.952808261 | F22: 76.86154661 | G22: 737.1285968 | H22: 3.996403161 | I22: 0.0207605359 | J22: 0.1384533913 | K22: 0.0207605359 | L22: 0.2162677546 | M22: 0.02593753946 | N22: 5.952808261 | O22: 7.441010326 | P22: 4 | Q22: 1667.53125 | R22: 0.06926406926 | S22: 3.968538841 | T22: 115.4076701 | U22: 1663.532849 | V22: 3.998401085 | W22: 0.02077091473 | X22: 0.09232994187 | Y22: 0.02077091473 | Z22: 0.1442460695 | AA22: 0.02595780468 | AB22: 3.968538841 | AC22: 4.960673551
B23: 5 | C23: 592.9 | D23: 0.1298701299 | E23: 7.441010326 | F23: 76.78373225 | G23: 587.9070237 | H23: 4.992976345 | I23: 0.02593753946 | J23: 0.2162677546 | K23: 0.02593753946 | L23: 0.3113100255 | M23: 0.03110579806 | N23: 7.441010326 | O23: 8.929212392 | P23: 5 | Q23: 1334.025 | R23: 0.08658008658 | S23: 4.960673551 | T23: 115.3557539 | U23: 1329.028123 | V23: 4.996877401 | W23: 0.02595780468 | X23: 0.1442460695 | Y23: 0.02595780468 | Z23: 0.207680087 | AA23: 0.03114080385 | AB23: 4.960673551 | AC23: 5.952808261
B24: 6 | C24: 494.0833333 | D24: 0.1558441558 | E24: 8.929212392 | F24: 76.68868997 | G24: 488.0954672 | H24: 5.987866127 | I24: 0.03110579806 | J24: 0.3113100255 | K24: 0.03110579806 | L24: 0.4235417488 | M24: 0.03626357138 | N24: 8.929212392 | O24: 10.41741446 | P24: 6 | Q24: 1111.6875 | R24: 0.1038961039 | S24: 5.952808261 | T24: 115.2923199 | U24: 1105.692895 | V24: 5.994604741 | W24: 0.03114080385 | X24: 0.207680087 | Y24: 0.03114080385 | Z24: 0.2826205845 | AA24: 0.0363191358 | AB24: 5.952808261 | AC24: 6.944942971
B25: 7 | C25: 423.5 | D25: 0.1818181818 | E25: 10.41741446 | F25: 76.57645825 | G25: 416.5192625 | H25: 6.98073749 | I25: 0.03626357138 | J25: 0.4235417488 | K25: 0.03626357138 | L25: 0.5529175206 | M25: 0.04140912379 | N25: 10.41741446 | O25: 11.90561652 | P25: 7 | Q25: 952.875 | R25: 0.1212121212 | S25: 6.944942971 | T25: 115.2173794 | U25: 945.8835664 | V25: 6.991433642 | W25: 0.0363191358 | X25: 0.2826205845 | Y25: 0.0363191358 | Z25: 0.3690540832 | AA25: 0.04149202502 | AB25: 6.944942971 | AC25: 7.937077681
B26: 8 | C26: 370.5625 | D26: 0.2077922078 | E26: 11.90561652 | F26: 76.44708248 | G26: 362.5912437 | H26: 7.971256329 | I26: 0.04140912379 | J26: 0.5529175206 | K26: 0.04140912379 | L26: 0.6993850113 | M26: 0.04654072517 | N26: 11.90561652 | O26: 13.39381859 | P26: 8 | Q26: 833.765625 | R26: 0.1385281385 | S26: 7.937077681 | T26: 115.1309459 | U26: 825.7784102 | V26: 7.987214817 | W26: 0.04149202502 | X26: 0.3690540832 | Y26: 0.04149202502 | Z26: 0.4669650383 | AA26: 0.04665869709 | AB26: 7.937077681 | AC26: 8.929212392
B27: 9 | C27: 329.3888889 | D27: 0.2337662338 | E27: 13.39381859 | F27: 76.30061499 | G27: 320.4297993 | H27: 8.959089595 | I27: 0.04654072517 | J27: 0.6993850113 | K27: 0.04654072517 | L27: 0.8628849899 | M27: 0.05165665166 | N27: 13.39381859 | O27: 14.88202065 | P27: 9 | Q27: 741.125 | R27: 0.1558441558 | S27: 8.929212392 | T27: 115.033035 | U27: 732.1432008 | V27: 8.98179919 | W27: 0.04665869709 | X27: 0.4669650383 | Y27: 0.04665869709 | Z27: 0.5763358428 | AA27: 0.05181837882 | AB27: 8.929212392 | AC27: 9.921347102
B28: 10 | C28: 296.45 | D28: 0.2597402597 | E28: 14.88202065 | F28: 76.13711501 | G28: 286.5060946 | H28: 9.943905444 | I28: 0.05165665166 | J28: 0.8628849899 | K28: 0.05165665166 | L28: 1.043351353 | M28: 0.05675518644 | N28: 14.88202065 | O28: 16.37022272 | P28: 10 | Q28: 667.0125 | R28: 0.1731601732 | S28: 9.921347102 | T28: 114.9236642 | U28: 657.0374621 | V28: 9.975037923 | W28: 0.05181837882 | X28: 0.5763358428 | Y28: 0.05181837882 | Z28: 0.6971468305 | AA28: 0.05697029843 | AB28: 9.921347102 | AC28: 10.91348181
B29: 11 | C29: 269.5 | D29: 0.2857142857 | E29: 16.37022272 | F29: 75.95664865 | G29: 258.5746266 | H29: 10.92537339 | I29: 0.05675518644 | J29: 1.043351353 | K29: 0.05675518644 | L29: 1.240711157 | M29: 0.06183462053 | N29: 16.37022272 | O29: 17.85842478 | P29: 11 | Q29: 606.375 | R29: 0.1904761905 | S29: 10.91348181 | T29: 114.8028532 | U29: 595.4082176 | V29: 10.96678245 | W29: 0.05697029843 | X29: 0.6971468305 | Y29: 0.05697029843 | Z29: 0.8293762809 | AA29: 0.06211368568 | AB29: 10.91348181 | AC29: 11.90561652
B30: 12 | C30: 247.0416667 | D30: 0.3116883117 | E30: 17.85842478 | F30: 75.75928884 | G30: 235.1385022 | H30: 11.90316445 | I30: 0.06183462053 | J30: 1.240711157 | K30: 0.06183462053 | L30: 1.454884652 | M30: 0.06689325351 | N30: 17.85842478 | O30: 19.34662685 | P30: 12 | Q30: 555.84375 | R30: 0.2077922078 | S30: 11.90561652 | T30: 114.6706237 | U30: 543.8868655 | V30: 11.95688449 | W30: 0.06211368568 | X30: 0.8293762809 | Y30: 0.06211368568 | Z30: 0.9730004236 | AA30: 0.06724777206 | AB30: 11.90561652 | AC30: 12.89775123
B31: 13 | C31: 228.0384615 | D31: 0.3376623377 | E31: 19.34662685 | F31: 75.54511535 | G31: 215.1615102 | H31: 12.8769513 | I31: 0.06689325351 | J31: 1.454884652 | K31: 0.06689325351 | L31: 1.685785321 | M31: 0.0719293943 | N31: 19.34662685 | O31: 20.83482891 | P31: 13 | Q31: 513.0865385 | R31: 0.2251082251 | S31: 12.89775123 | T31: 114.5269996 | U31: 500.1413423 | V31: 12.94519612 | W31: 0.06724777206 | X31: 0.9730004236 | Y31: 0.06724777206 | Z31: 1.127993443 | AA31: 0.07237179088 | AB31: 12.89775123 | AC31: 13.88988594
B32: 14 | C32: 211.75 | D32: 0.3636363636 | E32: 20.83482891 | F32: 75.31421468 | G32: 197.9035916 | H32: 13.8464084 | I32: 0.0719293943 | J32: 1.685785321 | K32: 0.0719293943 | L32: 1.933319923 | M32: 0.07694136192 | N32: 20.83482891 | O32: 22.32303098 | P32: 14 | Q32: 476.4375 | R32: 0.2424242424 | S32: 13.88988594 | T32: 114.3720066 | U32: 462.5059303 | V32: 13.93156974 | W32: 0.07237179088 | X32: 1.127993443 | Y32: 0.07237179088 | Z32: 1.294327485 | AA32: 0.07748497748 | AB32: 13.88988594 | AC32: 14.88202065
B33: 15 | C33: 197.6333333 | D33: 0.3896103896 | E33: 22.32303098 | F33: 75.06668008 | G33: 182.8221212 | H33: 14.81121217 | I33: 0.07694136192 | J33: 1.933319923 | K33: 0.07694136192 | L33: 2.197388534 | M33: 0.08192748626 | N33: 22.32303098 | O33: 23.81123304 | P33: 15 | Q33: 444.675 | R33: 0.2597402597 | S33: 14.88202065 | T33: 114.2056725 | U33: 429.7591418 | V33: 14.91585817 | W33: 0.07748497748 | X33: 1.294327485 | Y33: 0.07748497748 | Z33: 1.471972661 | AA33: 0.08258656938 | AB33: 14.88202065 | AC33: 15.87415536
B34: 16 | C34: 185.28125 | D34: 0.4155844156 | E34: 23.81123304 | F34: 74.80261147 | G34: 169.5102089 | H34: 15.77104111 | I34: 0.08192748626 | J34: 2.197388534 | K34: 0.08192748626 | L34: 2.4778846 | M34: 0.08688610879 | N34: 23.81123304 | O34: 25.29943511 | P34: 16 | Q34: 416.8828125 | R34: 0.2770562771 | S34: 15.87415536 | T34: 114.0280273 | U34: 400.9848979 | V34: 15.89791461 | W34: 0.08258656938 | X34: 1.471972661 | Y34: 0.08258656938 | Z34: 1.660897056 | AA34: 0.08767580639 | AB34: 15.87415536 | AC34: 16.86629007
B35: 17 | C35: 174.3823529 | D35: 0.4415584416 | E35: 25.29943511 | F35: 74.5221154 | G35: 157.656777 | H35: 16.72557594 | I35: 0.08688610879 | J35: 2.4778846 | K35: 0.08688610879 | L35: 2.774694983 | M35: 0.09181558333 | N35: 25.29943511 | O35: 26.78763717 | P35: 17 | Q35: 392.3602941 | R35: 0.2943722944 | S35: 16.86629007 | T35: 113.8391029 | U35: 375.4827014 | V35: 16.87759273 | W35: 0.08767580639 | X35: 1.660897056 | Y35: 0.08767580639 | Z35: 1.861066735 | AA35: 0.0927519308 | AB35: 16.86629007 | AC35: 17.85842478
B36: 18 | C36: 164.6944444 | D36: 0.4675324675 | E36: 26.78763717 | F36: 74.22530502 | G36: 147.0199447 | H36: 17.67449979 | I36: 0.09181558333 | J36: 2.774694983 | K36: 0.09181558333 | L36: 3.087700021 | M36: 0.09671427676 | N36: 26.78763717 | O36: 28.27583924 | P36: 18 | Q36: 370.5625 | R36: 0.3116883117 | S36: 17.85842478 | T36: 113.6389333 | U36: 352.7077533 | V36: 17.85474668 | W36: 0.0927519308 | X36: 1.861066735 | Y36: 0.0927519308 | Z36: 2.072445751 | AA36: 0.09781418751 | AB36: 17.85842478 | AC36: 18.85055949
B37: 19 | C37: 156.0263158 | D37: 0.4935064935 | E37: 28.27583924 | F37: 73.91229998 | G37: 137.4088175 | H37: 18.61749828 | I37: 0.09671427676 | J37: 3.087700021 | K37: 0.09671427676 | L37: 3.41677358 | M37: 0.1015805698 | N37: 28.27583924 | O37: 29.76404131 | P37: 19 | Q37: 351.0592105 | R37: 0.329004329 | S37: 18.85055949 | T37: 113.4275542 | U37: 332.2299794 | V37: 18.8292311 | W37: 0.09781418751 | X37: 2.072445751 | Y37: 0.09781418751 | Z37: 2.29499615 | AA37: 0.1028618242 | AB37: 18.85055949 | AC37: 19.8426942
B38: 20 | C38: 148.225 | D38: 0.5194805195 | E38: 29.76404131 | F38: 73.58322642 | G38: 128.6707403 | H38: 19.55425968 | I38: 0.1015805698 | J38: 3.41677358 | K38: 0.1015805698 | L38: 3.761783118 | M38: 0.1064128576 | N38: 29.76404131 | O38: 31.25224337 | P38: 20 | Q38: 333.50625 | R38: 0.3463203463 | S38: 19.8426942 | T38: 113.2050038 | U38: 313.7053488 | V38: 19.80090116 | W38: 0.1028618242 | X38: 2.29499615 | Y38: 0.1028618242 | Z38: 2.528677982 | AA38: 0.1078940914 | AB38: 19.8426942 | AC38: 20.83482891
B39: 21 | C39: 141.1666667 | D39: 0.5454545455 | E39: 31.25224337 | F39: 73.23821688 | G39: 120.6821916 | H39: 20.48447508 | I39: 0.1064128576 | J39: 3.761783118 | K39: 0.1064128576 | L39: 4.12258975 | M39: 0.1112095506 | N39: 31.25224337 | O39: 32.74044544 | P39: 21 | Q39: 317.625 | R39: 0.3636363636 | S39: 20.83482891 | T39: 112.971322 | U39: 296.8553874 | V39: 20.7696126 | W39: 0.1078940914 | X39: 2.528677982 | Y39: 0.1078940914 | Z39: 2.773449308 | AA39: 0.1129102429 | AB39: 20.83482891 | AC39: 21.82696362
B40: 22 | C40: 134.75 | D40: 0.5714285714 | E40: 32.74044544 | F40: 72.87741025 | G40: 113.3421615 | H40: 21.40783849 | I40: 0.1112095506 | J40: 4.12258975 | K40: 0.1112095506 | L40: 4.49904831 | M40: 0.1159690753 | N40: 32.74044544 | O40: 34.2286475 | P40: 22 | Q40: 303.1875 | R40: 0.380952381 | S40: 21.82696362 | T40: 112.7265507 | U40: 281.4522782 | V40: 21.73522176 | W40: 0.1129102429 | X40: 2.773449308 | Y40: 0.1129102429 | Z40: 3.029266211 | AA40: 0.1179095355 | AB40: 21.82696362 | AC40: 22.81909833
B41: 23 | C41: 128.8913043 | D41: 0.5974025974 | E41: 34.2286475 | F41: 72.50095169 | G41: 106.5672574 | H41: 22.32404699 | I41: 0.1159690753 | J41: 4.49904831 | K41: 0.1159690753 | L41: 4.891007425 | M41: 0.1206898746 | N41: 34.2286475 | O41: 35.71684957 | P41: 23 | Q41: 290.0054348 | R41: 0.3982683983 | S41: 22.81909833 | T41: 112.4707338 | U41: 267.3078492 | V41: 22.69758558 | W41: 0.1179095355 | X41: 3.029266211 | Y41: 0.1179095355 | Z41: 3.296082802 | AA41: 0.1228912294 | AB41: 22.81909833 | AC41: 23.81123304
B42: 24 | C42: 123.5208333 | D42: 0.6233766234 | E42: 35.71684957 | F42: 72.10899257 | G42: 100.2880325 | H42: 23.23280086 | I42: 0.1206898746 | J42: 4.891007425 | K42: 0.1206898746 | L42: 5.298309586 | M42: 0.1253704089 | N42: 35.71684957 | O42: 37.20505163 | P42: 24 | Q42: 277.921875 | R42: 0.4155844156 | S42: 23.81123304 | T42: 112.2039172 | U42: 254.2653133 | V42: 23.65656166 | W42: 0.1228912294 | X42: 3.296082802 | Y42: 0.1228912294 | Z42: 3.573851232 | AA42: 0.1278545884 | AB42: 23.81123304 | AC42: 24.80336775
B43: 25 | C43: 118.58 | D43: 0.6493506494 | E43: 37.20505163 | F43: 71.70169041 | G43: 94.44619628 | H43: 24.13380372 | I43: 0.1253704089 | J43: 5.298309586 | K43: 0.1253704089 | L43: 5.720791222 | M43: 0.1300091566 | N43: 37.20505163 | O43: 38.6932537 | P43: 25 | Q43: 266.805 | R43: 0.4329004329 | S43: 24.80336775 | T43: 111.9261488 | U43: 242.1929917 | V43: 24.61200826 | W43: 0.1278545884 | X43: 3.573851232 | Y43: 0.1278545884 | Z43: 3.862521702 | AA43: 0.1327988798 | AB43: 24.80336775 | AC43: 25.79550246
B44: 26 | C44: 114.0192308 | D44: 0.6753246753 | E44: 38.6932537 | F44: 71.27920878 | G44: 88.99246811 | H44: 25.02676265 | I44: 0.1300091566 | J44: 5.720791222 | K44: 0.1300091566 | L44: 6.158282783 | M44: 0.1346046148 | N44: 38.6932537 | O44: 40.18145576 | P44: 26 | Q44: 256.5432692 | R44: 0.4502164502 | S44: 25.79550246 | T44: 111.6374783 | U44: 230.9794849 | V44: 25.56378437 | W44: 0.1327988798 | X44: 3.862521702 | Y44: 0.1327988798 | Z44: 4.162042475 | AA44: 0.137723375 | AB44: 25.79550246 | AC44: 26.78763717
B45: 27 | C45: 109.7962963 | D45: 0.7012987013 | E45: 40.18145576 | F45: 70.84171722 | G45: 83.88490795 | H45: 25.91138834 | I45: 0.1346046148 | J45: 6.158282783 | K45: 0.1346046148 | L45: 6.610608816 | M45: 0.1391552997 | N45: 40.18145576 | O45: 41.66965783 | P45: 27 | Q45: 247.0416667 | R45: 0.4675324675 | S45: 26.78763717 | T45: 111.3379575 | U45: 220.529917 | V45: 26.51174969 | W45: 0.137723375 | X45: 4.162042475 | Y45: 0.137723375 | Z45: 4.472359884 | AA45: 0.142627349 | AB45: 26.78763717 | AC45: 27.77977189
B46: 28 | C46: 105.875 | D46: 0.7272727273 | E46: 41.66965783 | F46: 70.38939118 | G46: 79.0876048 | H46: 26.7873952 | I46: 0.1391552997 | J46: 6.610608816 | K46: 0.1391552997 | L46: 7.077588052 | M46: 0.1436597479 | N46: 41.66965783 | O46: 43.15785989 | P46: 28 | Q46: 238.21875 | R46: 0.4848484848 | S46: 27.77977189 | T46: 111.0276401 | U46: 210.7629853 | V46: 27.45576468 | W46: 0.142627349 | X46: 4.472359884 | Y46: 0.142627349 | Z46: 4.793418345 | AA46: 0.147510081 | AB46: 27.77977189 | AC46: 28.7719066
B47: 29 | C47: 102.2241379 | D47: 0.7532467532 | E47: 43.15785989 | F47: 69.92241195 | G47: 74.56963647 | H47: 27.65450146 | I47: 0.1436597479 | J47: 7.077588052 | K47: 0.1436597479 | L47: 7.559033495 | M47: 0.1481165162 | N47: 43.15785989 | O47: 44.64606196 | P47: 29 | Q47: 230.0043103 | R47: 0.5021645022 | S47: 28.7719066 | T47: 110.7065817 | U47: 201.6086197 | V47: 28.3956906 | W47: 0.147510081 | X47: 4.793418345 | Y47: 0.147510081 | Z47: 5.125160369 | AA47: 0.1523708546 | AB47: 28.7719066 | AC47: 29.76404131
B48: 30 | C48: 98.81666667 | D48: 0.7792207792 | E48: 44.64606196 | F48: 69.44096651 | G48: 70.3042373 | H48: 28.51242937 | I48: 0.1481165162 | J48: 7.559033495 | K48: 0.1481165162 | L48: 8.054752505 | M48: 0.1525241831 | N48: 44.64606196 | O48: 46.13426402 | P48: 30 | Q48: 222.3375 | R48: 0.5194805195 | S48: 29.76404131 | T48: 110.3748396 | U48: 193.0061105 | V48: 29.33138952 | W48: 0.1523708546 | X48: 5.125160369 | Y48: 0.1523708546 | Z48: 5.467526576 | AA48: 0.1572089576 | AB48: 29.76404131 | AC48: 30.75617602
B49: 31 | C49: 95.62903226 | D49: 0.8051948052 | E49: 46.13426402 | F49: 68.9452475 | G49: 66.26812702 | H49: 29.36090524 | I49: 0.1525241831 | J49: 8.054752505 | K49: 0.1525241831 | L49: 8.564546896 | M49: 0.1568813486 | N49: 46.13426402 | O49: 47.62246609 | P49: 31 | Q49: 215.1653226 | R49: 0.5367965368 | S49: 30.75617602 | T49: 110.0324734 | U49: 184.9025982 | V49: 30.26272435 | W49: 0.1572089576 | X49: 5.467526576 | Y49: 0.1572089576 | Z49: 5.820455704 | AA49: 0.1620236824 | AB49: 30.75617602 | AC49: 31.74831073
B50: 32 | C50: 92.640625 | D50: 0.8311688312 | E50: 47.62246609 | F50: 68.4354531 | G50: 62.44096539 | H50: 30.19965961 | I50: 0.1568813486 | J50: 8.564546896 | K50: 0.1568813486 | L50: 9.088213031 | M50: 0.1611866356 | N50: 47.62246609 | O50: 49.11066815 | P50: 32 | Q50: 208.4414062 | R50: 0.5541125541 | S50: 31.74831073 | T50: 109.6795443 | U50: 177.2518474 | V50: 31.18955886 | W50: 0.1620236824 | X50: 5.820455704 | Y50: 0.1620236824 | Z50: 6.183884625 | AA50: 0.1668143259 | AB50: 31.74831073 | AC50: 32.74044544
B51: 33 | C51: =$B$17^2/(2*B51) -> 89.83333333 | D51: =$B$17/C51 -> 0.8571428571 | E51: 49.11066815 | F51: 67.91178697 | G51: 58.80490599 | H51: 31.02842734 | I51: 0.1611866356 | J51: 9.088213031 | K51: 0.1611866356 | L51: 9.625541915 | M51: 0.1654386896 | N51: 49.11066815 | O51: 50.59887022 | P51: 33 | Q51: 202.125 | R51: 0.5714285714 | S51: 32.74044544 | T51: 109.3161154 | U51: 170.0132423 | V51: 32.11175774 | W51: 0.1668143259 | X51: 6.183884625 | Y51: 0.1668143259 | Z51: 6.557748356 | AA51: 0.17158019 | AB51: 32.74044544 | AC51: 33.73258015
B52: =B51+$A$19 -> 34 | C52: 87.19117647 | D52: 0.8831168831 | E52: 50.59887022 | F52: 67.37445809 | G52: 55.34422871 | H52: 31.84694776 | I52: 0.1654386896 | J52: 9.625541915 | K52: 0.1654386896 | L52: 10.1763193 | M52: 0.1696361804 | N52: 50.59887022 | O52: 52.08707228 | P52: 34 | Q52: 196.1801471 | R52: 0.5887445887 | S52: 33.73258015 | T52: 108.9422516 | U52: 163.1509605 | V52: 33.02918658 | W52: 0.17158019 | X52: 6.557748356 | Y52: 0.17158019 | Z52: 6.941980076 | AA52: 0.1763205814 | AB52: 33.73258015 | AC52: 34.72471486
B53: 35 | C53: 84.7 | D53: 0.9090909091 | E53: 52.08707228 | F53: 66.8236807 | G53: 52.04503528 | H53: 32.65496472 | I53: 0.1696361804 | J53: 10.1763193 | K53: 0.1696361804 | L53: 10.74032578 | M53: 0.1737778014 | N53: 52.08707228 | O53: 53.57527435 | P53: 35 | Q53: 190.575 | R53: 0.6060606061 | S53: 34.72471486 | T53: 108.5580199 | U53: 156.6332881 | V53: 33.94171192 | W53: 0.1763205814 | X53: 6.941980076 | Y53: 0.1763205814 | Z53: 7.336511138 | AA53: 0.1810348119 | AB53: 34.72471486 | AC53: 35.71684957
B54: 36 | C54: 82.34722222 | D54: 0.9350649351 | E54: 53.57527435 | F54: 66.25967422 | G54: 48.89499544 | H54: 33.45222678 | I54: 0.1737778014 | J54: 10.74032578 | K54: 0.1737778014 | L54: 11.3173369 | M54: 0.1778622715 | N54: 53.57527435 | O54: 55.06347642 | P54: 36 | Q54: 185.28125 | R54: 0.6233766234 | S54: 35.71684957 | T54: 108.1634889 | U54: 150.4320487 | V54: 34.84920129 | W54: 0.1810348119 | X54: 7.336511138 | Y54: 0.1810348119 | Z54: 7.741271084 | AA54: 0.1857221985 | AB54: 35.71684957 | AC54: 36.70898428
B55: 37 | C55: 80.12162162 | D55: 0.961038961 | E55: 55.06347642 | F55: 65.6826631 | G55: 45.88313436 | H55: 34.23848726 | I55: 0.1778622715 | J55: 11.3173369 | K55: 0.1778622715 | L55: 11.90712327 | M55: 0.1818883343 | N55: 55.06347642 | O55: 56.55167848 | P55: 37 | Q55: 180.2736486 | R55: 0.6406926407 | S55: 36.70898428 | T55: 107.7587289 | U55: 144.5221254 | V55: 35.75152322 | W55: 0.1857221985 | X55: 7.741271084 | Y55: 0.1857221985 | Z55: 8.15618766 | AA55: 0.1903820636 | AB55: 36.70898428 | AC55: 37.70111899
B56: 38 | C56: 78.01315789 | D56: 0.987012987 | E56: 56.55167848 | F56: 65.09287673 | G56: 42.99965353 | H56: 35.01350436 | I56: 0.1818883343 | J56: 11.90712327 | K56: 0.1818883343 | L56: 12.50945067 | M56: 0.1858547599 | N56: 56.55167848 | O56: 58.03988055 | P56: 38 | Q56: 175.5296053 | R56: 0.658008658 | S56: 37.70111899 | T56: 107.3438123 | U56: 138.881058 | V56: 36.64854725 | W56: 0.1903820636 | X56: 8.15618766 | Y56: 0.1903820636 | Z56: 8.581186833 | AA56: 0.195013735 | AB56: 37.70111899 | AC56: 38.6932537
B57: 39 | C57: 76.01282051 | D57: 1.012987013 | E57: 58.03988055 | F57: 64.49054933 | G57: 40.23577923 | H57: 35.77704129 | I57: 0.1858547599 | J57: 12.50945067 | K57: 0.1858547599 | L57: 13.12408016 | M57: 0.1897603445 | N57: 58.03988055 | O57: 59.52808261 | P57: 39 | Q57: 171.0288462 | R57: 0.6753246753 | S57: 38.6932537 | T57: 106.9188132 | U57: 133.4887022 | V57: 37.54014398 | W57: 0.195013735 | X57: 8.581186833 | Y57: 0.195013735 | Z57: 9.016192805 | AA57: 0.199616546 | AB57: 38.6932537 | AC57: 39.68538841
B58: 40 | C58: 74.1125 | D58: 1.038961039 | E58: 59.52808261 | F58: 63.87591984 | G58: 37.58363368 | H58: 36.52886632 | I58: 0.1897603445 | J58: 13.12408016 | K58: 0.1897603445 | L58: 13.75076817 | M58: 0.1936039114 | N58: 59.52808261 | O58: 61.01628468 | P58: 40 | Q58: 166.753125 | R58: 0.6926406926 | S58: 39.68538841 | T58: 106.4838072 | U58: 128.3269399 | V58: 38.42618511 | W58: 0.199616546 | X58: 9.016192805 | Y58: 0.199616546 | Z58: 9.461128028 | AA58: 0.2041898359 | AB58: 39.68538841 | AC58: 40.67752312
B59: 41 | C59: 72.30487805 | D59: 1.064935065 | E59: 61.01628468 | F59: 63.24923183 | G59: 35.03612511 | H59: 37.26875294 | I59: 0.1936039114 | J59: 13.75076817 | K59: 0.1936039114 | L59: 14.38926667 | M59: 0.1973843112 | N59: 61.01628468 | O59: 62.50448674 | P59: 41 | Q59: 162.6859756 | R59: 0.70995671 | S59: 40.67752312 | T59: 106.038872 | U59: 123.3794322 | V59: 39.30654341 | W59: 0.2041898359 | X59: 9.461128028 | Y59: 0.2041898359 | Z59: 9.915913224 | AA59: 0.2087329496 | AB59: 40.67752312 | AC59: 41.66965783
B60: 42 | C60: 70.58333333 | D60: 1.090909091 | E60: 62.50448674 | F60: 62.61073333 | G60: 32.58685344 | H60: 37.9964799 | I60: 0.1973843112 | J60: 14.38926667 | K60: 0.1973843112 | L60: 15.03932325 | M60: 0.2011004225 | N60: 62.50448674 | O60: 63.99268881 | P60: 42 | Q60: 158.8125 | R60: 0.7272727273 | S60: 41.66965783 | T60: 105.5840868 | U60: 118.6314072 | V60: 40.18109279 | W60: 0.2087329496 | X60: 9.915913224 | Y60: 0.2087329496 | Z60: 10.3804674 | AA60: 0.2132452381 | AB60: 41.66965783 | AC60: 42.66179254
B61: 43 | C61: 68.94186047 | D61: 1.116883117 | E61: 63.99268881 | F61: 61.96067675 | G61: 30.23002913 | H61: 38.71183133 | I61: 0.2011004225 | J61: 15.03932325 | K61: 0.2011004225 | L61: 15.70068124 | M61: 0.2047511524 | N61: 63.99268881 | O61: 65.48089087 | P61: 43 | Q61: 155.119186 | R61: 0.7445887446 | S61: 42.66179254 | T61: 105.1195326 | U61: 114.0694777 | V61: 41.04970833 | W61: 0.2132452381 | X61: 10.3804674 | Y61: 0.2132452381 | Z61: 10.85470786 | AA61: 0.2177260586 | AB61: 42.66179254 | AC61: 43.65392725
B62: 44 | C62: 67.375 | D62: 1.142857143 | E62: 65.48089087 | F62: 61.29931876 | G62: 27.96040316 | H62: 39.41459684 | I62: 0.2047511524 | J62: 15.70068124 | K62: 0.2047511524 | L62: 16.37307984 | M62: 0.2083354369 | N62: 65.48089087 | O62: 66.96909294 | P62: 44 | Q62: 151.59375 | R62: 0.7619047619 | S62: 43.65392725 | T62: 104.6452921 | U62: 109.6814837 | V62: 41.91226627 | W62: 0.2177260586 | X62: 10.85470786 | Y62: 0.2177260586 | Z62: 11.33855024 | AA62: 0.2221747743 | AB62: 43.65392725 | AC62: 44.64606196
B63: 45 | C63: 65.87777778 | D63: 1.168831169 | E63: 66.96909294 | F63: 60.62692016 | G63: 25.77320618 | H63: 40.1045716 | I63: 0.2083354369 | J63: 16.37307984 | K63: 0.2083354369 | L63: 17.05625425 | M63: 0.211852241 | N63: 66.96909294 | O63: 68.457295 | P63: 45 | Q63: 148.225 | R63: 0.7792207792 | S63: 44.64606196 | T63: 104.1614498 | U63: 105.4563559 | V63: 42.76864405 | W63: 0.2221747743 | X63: 11.33855024 | Y63: 0.2221747743 | Z63: 11.8319085 | AA63: 0.2265907551 | AB63: 44.64606196 | AC63: 45.63819667
B64: 46 | C64: 64.44565217 | D64: 1.194805195 | E64: 68.457295 | F64: 59.94374575 | G64: 23.66409579 | H64: 40.78155639 | I64: 0.211852241 | J64: 17.05625425 | K64: 0.211852241 | L64: 17.74993578 | M64: 0.2153005597 | N64: 68.457295 | O64: 69.94549707 | P64: 46 | Q64: 145.0027174 | R64: 0.7965367965 | S64: 45.63819667 | T64: 103.6680915 | U64: 101.383997 | V64: 43.61872035 | W64: 0.2265907551 | X64: 11.8319085 | Y64: 0.2265907551 | Z64: 12.33469497 | AA64: 0.230973377 | AB64: 45.63819667 | AC64: 46.63033138
B65: 47 | C65: 63.07446809 | D65: 1.220779221 | E65: 69.94549707 | F65: 59.25006422 | G65: 21.62911035 | H65: 41.44535774 | I65: 0.2153005597 | J65: 17.74993578 | K65: 0.2153005597 | L65: 18.453852 | M65: 0.218679418 | N65: 69.94549707 | O65: 71.43369913 | P65: 47 | Q65: 141.9175532 | R65: 0.8138528139 | S65: 46.63033138 | T65: 103.165305 | U65: 97.45517812 | V65: 44.46237507 | W65: 0.230973377 | X65: 12.33469497 | Y65: 0.230973377 | Z65: 12.84682034 | AA65: 0.2353220229 | AB65: 46.63033138 | AC65: 47.62246609
B66: 48 | C66: 61.76041667 | D66: 1.246753247 | E66: 71.43369913 | F66: 58.546148 | G66: 19.66462869 | H66: 42.09578797 | I66: 0.218679418 | J66: 18.453852 | K66: 0.218679418 | L66: 19.16772685 | M66: 0.2219878717 | N66: 71.43369913 | O66: 72.9219012 | P66: 48 | Q66: 138.9609375 | R66: 0.8311688312 | S66: 47.62246609 | T66: 102.6531797 | U66: 93.66144809 | V66: 45.29948941 | W66: 0.2353220229 | X66: 12.84682034 | Y66: 0.2353220229 | Z66: 13.36819371 | AA66: 0.2396360824 | AB66: 47.62246609 | AC66: 48.6146008
B67: 49 | C67: 60.5 | D67: 1.272727273 | E67: 72.9219012 | F67: 57.83227315 | G67: 17.7673347 | H67: 42.7326653 | I67: 0.2219878717 | J67: 19.16772685 | K67: 0.2219878717 | L67: 19.89128077 | M67: 0.2252250071 | N67: 72.9219012 | O67: 74.41010326 | P67: 49 | Q67: 136.125 | R67: 0.8484848485 | S67: 48.6146008 | T67: 102.1318063 | U67: 89.99505414 | V67: 46.12994586 | W67: 0.2396360824 | X67: 13.36819371 | Y67: 0.2396360824 | Z67: 13.89872257 | AA67: 0.2439149518 | AB67: 48.6146008 | AC67: 49.60673551
B68: 50 | C68: 59.29 | D68: 1.298701299 | E68: 74.41010326 | F68: 57.10871923 | G68: 15.93418613 | H68: 43.35581387 | I68: 0.2252250071 | J68: 19.89128077 | K68: 0.2252250071 | L68: =NA() ->  | M68: =NA() ->  | N68: 74.41010326 | O68: =NA() ->  | P68: 50 | Q68: 133.4025 | R68: 0.8658008658 | S68: 49.60673551 | T68: 101.6012774 | U68: 86.44887178 | V68: 46.95362822 | W68: 0.2439149518 | X68: 13.89872257 | Y68: 0.2439149518 | Z68: =NA() ->  | AA68: =NA() ->  | AB68: 49.60673551 | AC68: =NA() -> 

Sheet Twist
A2: JIB | B2: (Calculations from the "Leech" spreadsheet)
A3: Leech length | C3: =HLOOKUP(RigNumber,DefaultTable,17) -> 1250 | D3: mm | F3: g | G3: =C3/2 -> 625 | H3: mm
A4: Foot | C4: =HLOOKUP(RigNumber,DefaultTable,5) -> 385 | D4: mm | F4: head | G4: 20 | H4: mm
A6: TL lift (mm) | C6: 0.5 | D6: 0.71 | E6: 0.97 | F6: 1.275 | G6: 1.6 | H6: 1.975 | I6: 2.4 | J6: 2.85 | K6: 3.33 | L6: 3.85 | M6: 4.4 | N6: 5 | O6: 5.6 | P6: 6.3 | Q6: 7 | R6: 7.7 | S6: 8.45 | T6: 9.25 | U6: 10.05
A7: h | C7: =($C$3-C6)/2 -> 624.75 | D7: 624.645 | E7: 624.515 | F7: 624.3625 | G7: 624.2 | H7: 624.0125 | I7: 623.8 | J7: 623.575 | K7: 623.335 | L7: 623.075 | M7: 622.8 | N7: 622.5 | O7: =($C$3-O6)/2 -> 622.2 | P7: 621.85 | Q7: 621.5 | R7: 621.15 | S7: 620.775 | T7: 620.375 | U7: 619.975
A8: d | C8: =SQRT($G$3^2-C7^2) -> 17.67590167 | D8: 21.06238294 | E8: 24.61736735 | F8: 28.22177517 | G8: 31.61265569 | H8: 35.11979276 | I8: 38.71123868 | J8: 42.18079391 | K8: 45.59032545 | L8: 49.0157564 | M8: 52.3942745 | N8: 55.84576976 | O8: =SQRT($G$3^2-O7^2) -> 59.09450059 | P8: 62.67038774 | Q8: 66.05111657 | R8: 69.26526907 | S8: 72.54928928 | T8: 75.89373739 | U8: 79.09487578
A9: r | C9: =$G$3^2/(2*C8) -> 11049.64848 | D9: 9273.048571 | E9: 7933.931247 | F9: 6920.631279 | G9: 6178.300928 | H9: 5561.32268 | I9: 5045.369424 | J9: 4630.365669 | K9: 4284.077774 | L9: 3984.688075 | M9: 3727.7451 | N9: 3497.355321 | O9: =$G$3^2/(2*O8) -> 3305.087581 | P9: 3116.503775 | Q9: 2956.990133 | R9: 2819.775374 | S9: 2692.135263 | T9: 2573.499563 | U9: 2469.344544
A10: Phi | C10: =($C$3/C9)/2 -> 0.05656288536 | D10: 0.0673996254 | E10: 0.0787755755 | F10: 0.09030968054 | G10: 0.1011604982 | H10: 0.1123833368 | I10: 0.1238759638 | J10: 0.1349785405 | K10: 0.1458890415 | L10: 0.1568504205 | M10: 0.1676616784 | N10: 0.1787064632 | O10: =($C$3/O9)/2 -> 0.1891024019 | P10: 0.2005452408 | Q10: 0.211363573 | R10: 0.221648861 | S10: 0.2321577257 | T10: 0.2428599596 | U10: 0.2531036025
A11: Mid-leech gap | B11: 0.5 | C11: =C$9*(COS(2*($B11-0.5)*C$10)-1)+C$8 -> 17.67590167 | D11: =D$9*(COS(2*($B11-0.5)*D$10)-1)+D$8 -> 21.06238294 | E11: 24.61736735 | F11: 28.22177517 | G11: 31.61265569 | H11: 35.11979276 | I11: 38.71123868 | J11: 42.18079391 | K11: 45.59032545 | L11: 49.0157564 | M11: 52.3942745 | N11: 55.84576976 | O11: 59.09450059 | P11: 62.67038774 | Q11: 66.05111657 | R11: 69.26526907 | S11: 72.54928928 | T11: 75.89373739 | U11: 79.09487578
A12: Mid-leech twist | B12: =B11 -> 0.5 | C12: =180*ASIN(C$11/($G$4+$B12*($C$4-$G$4)))/PI() -> 5.00762997 | D12: 5.97023326 | E12: 6.982561441 | F12: 8.011206836 | G12: 8.981287331 | H12: 9.987369308 | I12: 11.02087409 | J12: 12.02275918 | K12: 13.01095847 | L12: 14.00774879 | M12: 14.99514276 | N12: 16.00859658 | O12: =180*ASIN(O$11/($G$4+$B12*($C$4-$G$4)))/PI() -> 16.96722943 | P12: 18.02810032 | Q12: 19.03698046 | R12: 20.00186384 | S12: 20.99387186 | T12: 22.01095645 | U12: 22.99133909
C13: =C6 -> 0.5 | D13: =D6 -> 0.71 | E13: 0.97 | F13: 1.275 | G13: 1.6 | H13: 1.975 | I13: 2.4 | J13: 2.85 | K13: 3.33 | L13: 3.85 | M13: 4.4 | N13: 5 | O13: 5.6 | P13: 6.3 | Q13: 7 | R13: 7.7 | S13: 8.45 | T13: 9.25 | U13: 10.05
C14: =D6 -> 0.71 | D14: =E6 -> 0.97 | E14: 1.275 | F14: 1.6 | G14: 1.975 | H14: 2.4 | I14: 2.85 | J14: 3.33 | K14: 3.85 | L14: 4.4 | M14: 5 | N14: 5.6 | O14: 6.3 | P14: 7 | Q14: 7.7 | R14: 8.45 | S14: 9.25 | T14: 10.05 | U14: =NA() -> 
A16: Default gap | C16: =HLOOKUP(RigNumber,DefaultTable,18) -> 35
A17: Default twist | C17: =180*ASIN(C16/($G$4+$B12*($C$4-$G$4)))/PI() -> 9.952955168
A18: Lower TL lift | C18: =HLOOKUP(C16,C11:U14,3) -> 1.6
A19: Upper TL lift | C19: =HLOOKUP(C16,C11:U14,4) -> 1.975
A20: Lift diff | C20: =C19-C18 -> 0.375
A21: Lower twist | C21: =HLOOKUP(C16,C11:U14,2) -> 8.981287331
A22: Upper twist | C22: =HLOOKUP(C19,C6:U14,7) -> 9.987369308
A23: % incr | C23: =(C17-C21)/(C22-C21) -> 0.965793901
A24: Default TL lift | C24: =C18+C23*C20 -> 1.962172713 | E24: (by linear interpolation)
A25: Gap reduced due to JS sag (twist) | G25: =JsSagTwist -> 10.30405889 | H25: mm
C26: =C6 -> 0.5 | D26: =D6 -> 0.71 | E26: 0.97 | F26: 1.275 | G26: 1.6 | H26: 1.975 | I26: 2.4 | J26: 2.85 | K26: 3.33 | L26: 3.85 | M26: 4.4 | N26: 5 | O26: 5.6 | P26: 6.3 | Q26: 7 | R26: 7.7 | S26: 8.45 | T26: 9.25 | U26: 10.05
A27: Gap - JS sag | C27: =C$9*(COS(2*($B11-0.5)*C$10)-1)+C$8-$G$25 -> 7.371842784 | D27: 10.75832405 | E27: 14.31330845 | F27: 17.91771628 | G27: 21.3085968 | H27: 24.81573387 | I27: 28.40717979 | J27: 31.87673502 | K27: 35.28626656 | L27: 38.7116975 | M27: 42.09021561 | N27: 45.54171087 | O27: 48.7904417 | P27: 52.36632885 | Q27: 55.74705768 | R27: 58.96121018 | S27: 62.24523039 | T27: 65.5896785 | U27: 68.79081689
A28: Twist after JS sag | C28: =180*ASIN(C$27/($G$4+$B12*($C$4-$G$4)))/PI() -> 2.086265815 | D28: =180*ASIN(D$27/($G$4+$B12*($C$4-$G$4)))/PI() -> 3.045416804 | E28: 4.053217681 | F28: 5.076315284 | G28: 6.040281944 | H28: 7.039110502 | I28: 8.064186067 | J28: 9.056941887 | K28: 10.03520005 | L28: 11.02100635 | M28: 11.99655727 | N28: 12.99684132 | O28: 13.94205329 | P28: 14.98695718 | Q28: 15.97954208 | R28: 16.92780379 | S28: 17.90163989 | T28: 18.89892376 | U28: 19.85906888
C29: =C6 -> 0.5 | D29: =D6 -> 0.71 | E29: 0.97 | F29: 1.275 | G29: 1.6 | H29: 1.975 | I29: 2.4 | J29: 2.85 | K29: 3.33 | L29: 3.85 | M29: 4.4 | N29: 5 | O29: 5.6 | P29: 6.3 | Q29: 7 | R29: 7.7 | S29: 8.45 | T29: 9.25 | U29: 10.05
C30: =D6 -> 0.71 | D30: 0.97 | E30: 1.275 | F30: 1.6 | G30: 1.975 | H30: 2.4 | I30: 2.85 | J30: 3.33 | K30: 3.85 | L30: 4.4 | M30: 5 | N30: 5.6 | O30: 6.3 | P30: 7 | Q30: 7.7 | R30: 8.45 | S30: 9.25 | T30: 10.05 | U30: =NA() -> 
A32: Current lift | C32: =TlLiftTotal -> 2.766929828
A33: Upper lift | C33: =HLOOKUP(C32,C26:U30,5) -> 2.85
A34: Lower lift | C34: =HLOOKUP(C32,C26:U30,4) -> 2.4
A35: Upper twist | C35: =HLOOKUP(C33,C26:U30,3) -> 9.056941887
A36: Lower twist | C36: =HLOOKUP(C32,C26:U30,3) -> 8.064186067
A37: Current twist | C37: =C36+(C35-C36)*(C32-C34)/(C33-C34) -> 8.873678783 | E37: (by linear interpolation)
